bitfinex/quotes_BTCUSD_20240721
["timestamp","ask_amount","ask_price","bid_price","bid_amount"]
[1721572721860,0.0074421,67336.0,67335.0,0.87379366]
[1721572722303,0.0054421,67336.0,67335.0,0.87379366]
[1721572722723,0.0034421,67336.0,67335.0,0.87379366]
[1721572722934,0.0074421,67336.0,67335.0,0.87379366]
[1721572723153,0.0054421,67336.0,67335.0,0.87378312]
[1721572723363,0.0054421,67336.0,67335.0,0.65880138]
[1721572723569,0.0064421,67336.0,67335.0,0.36177938]
[1721572723800,0.0064421,67336.0,67335.0,0.13136838]
[1721572724007,0.0054421,67336.0,67335.0,0.12334407]
[1721572724212,0.0074421,67336.0,67335.0,0.12334407]
[1721572724832,0.0064421,67336.0,67335.0,0.12334407]
[1721572725261,0.0064421,67336.0,67335.0,0.13136838]
[1721572725472,0.0064421,67336.0,67335.0,0.00802431]
[1721572725910,0.0064421,67336.0,67335.0,0.13137544]
[1721572726137,0.0064421,67336.0,67335.0,0.07996685]
[1721572726368,0.0014421,67336.0,67335.0,0.35182654]
[1721572726579,0.0014421,67336.0,67335.0,0.279884]
[1721572726995,0.0044421,67336.0,67335.0,0.279884]
[1721572727440,0.0014421,67336.0,67335.0,0.279884]
[1721572727677,0.0014421,67336.0,67335.0,0.15653531]
[1721572727886,0.0034421,67336.0,67335.0,0.15653531]
[1721572728092,0.0064421,67336.0,67335.0,0.15653531]
[1721572728299,0.0064421,67336.0,67335.0,0.13137083]
[1721572728526,0.0014421,67336.0,67335.0,0.27988183]
[1721572728740,0.0054421,67336.0,67335.0,0.27988183]
[1721572728982,0.0054421,67336.0,67335.0,0.73128557]
[1721572729195,0.0054421,67336.0,67335.0,0.81866413]
[1721572729420,0.0054421,67336.0,67335.0,0.81866398]
[1721572729848,0.0084421,67336.0,67335.0,0.81866398]
[1721572730056,0.0044421,67336.0,67335.0,0.73128542]
[1721572730267,0.0074421,67336.0,67335.0,0.73128542]
[1721572730472,0.0074421,67336.0,67335.0,0.13137068]
[1721572730888,0.0094421,67336.0,67335.0,0.13137068]
[1721572731093,0.0064421,67336.0,67335.0,0.27988168]
[1721572731304,0.0014421,67336.0,67335.0,0.27988168]
[1721572731517,0.0044421,67336.0,67335.0,0.00802431]
[1721572731724,0.0044421,67336.0,67335.0,0.13136956]
[1721572732424,0.0044421,67336.0,67335.0,0.00802431]
[1721572732638,0.07129545,67336.0,67335.0,0.13137085]
[1721572733290,0.07329545,67336.0,67335.0,0.13137085]
[1721572733500,0.07129545,67336.0,67335.0,0.27988185]
[1721572733716,0.07129545,67336.0,67335.0,0.13137085]
[1721572733924,0.07429545,67336.0,67335.0,0.13137085]
[1721572734147,0.07429545,67336.0,67335.0,0.27988185]
[1721572734390,0.07129545,67336.0,67335.0,0.27988185]
[1721572734599,0.07429545,67336.0,67335.0,0.27988185]
[1721572734815,0.07629545,67336.0,67335.0,0.28088185]
[1721572735041,0.07329545,67336.0,67335.0,0.28088185]
[1721572735253,0.07629545,67336.0,67335.0,0.79007718]
[1721572735497,0.0104421,67336.0,67335.0,0.66673064]
[1721572735710,0.0104421,67336.0,67335.0,0.79007717]
[1721572735909,0.0094421,67336.0,67335.0,0.73228558]
[1721572736122,0.0124421,67336.0,67335.0,0.73228558]
[1721572736342,0.0124421,67336.0,67335.0,0.43526358]
[1721572736559,0.0124421,67336.0,67335.0,0.28088184]
[1721572736784,0.0124421,67336.0,67335.0,0.13237084]
[1721572736998,0.0124421,67336.0,67335.0,0.00902431]
[1721572736999,0.07929706,67336.0,67335.0,0.00902431]
[1721572737208,0.0044421,67336.0,67335.0,0.00802431]
[1721572737419,0.09558474,67336.0,67335.0,0.00902431]
[1721572737647,0.0064421,67336.0,67335.0,0.00902431]
[1721572737851,0.0034421,67336.0,67335.0,0.00802431]
[1721572738054,0.0084421,67336.0,67335.0,0.00902431]
[1721572738896,0.09858452,67336.0,67335.0,0.00994831]
[1721572739097,0.0094421,67336.0,67335.0,0.00994831]
[1721572739523,0.0114421,67336.0,67335.0,0.00994831]
[1721572739729,0.0064421,67336.0,67335.0,0.00894831]
[1721572740347,0.09558452,67336.0,67335.0,0.00894831]
[1721572740551,0.09559004,67336.0,67335.0,0.00894831]
[1721572740765,0.09259004,67336.0,67335.0,0.00894831]
[1721572741178,0.0084421,67336.0,67335.0,0.00994831]
[1721572741382,0.09359031,67336.0,67335.0,0.00894831]
[1721572741801,0.09759031,67336.0,67335.0,0.00894831]
[1721572742031,0.07730443,67336.0,67335.0,0.13229495]
[1721572742237,0.07730443,67336.0,67335.0,0.00894831]
[1721572742441,0.0054421,67336.0,67335.0,0.00894831]
[1721572742644,0.06830198,67336.0,67335.0,0.00894831]
[1721572742872,0.07130198,67336.0,67335.0,0.00894831]
[1721572743117,0.07630198,67336.0,67335.0,0.13329535]
[1721572743317,0.0094421,67336.0,67335.0,0.13329535]
[1721572743722,0.07630198,67336.0,67335.0,0.13329535]
[1721572744106,0.07330198,67336.0,67335.0,0.13329535]
[1721572744317,0.0014421,67336.0,67335.0,0.13229458]
[1721572744536,0.06830045,67336.0,67335.0,0.28080558]
[1721572744742,0.0014421,67336.0,67335.0,0.13229458]
[1721572745363,0.0054421,67336.0,67335.0,0.13229458]
[1721572745568,0.07730045,67336.0,67335.0,0.13229458]
[1721572745790,0.08230045,67336.0,67335.0,0.00994831]
[1721572746002,0.08230045,67336.0,67335.0,0.13329441]
[1721572747452,0.0014421,67336.0,67335.0,0.00894831]
[1721572747678,0.0014421,67336.0,67335.0,0.13229415]
[1721572747866,0.07229881,67336.0,67335.0,0.13229415]
[1721572748072,0.07429881,67336.0,67335.0,0.13229415]
[1721572748699,0.08173881,67336.0,67335.0,0.13229415]
[1721572749321,0.07973881,67336.0,67335.0,0.13229415]
[1721572749743,0.07573881,67336.0,67335.0,0.13229415]
[1721572750742,0.07673884,67336.0,67335.0,0.00894831]
[1721572750922,0.0098821,67336.0,67335.0,0.13229481]
[1721572751123,0.0128821,67336.0,67335.0,0.13229481]
[1721572751329,0.07973884,67336.0,67335.0,0.28080581]
[1721572751506,0.07973884,67336.0,67335.0,0.19007869]
[1721572751725,0.07973884,67336.0,67335.0,0.33858969]
[1721572751934,0.07973884,67336.0,67335.0,0.19007869]
[1721572752347,0.07973884,67336.0,67335.0,0.57782781]
[1721572752559,0.0128821,67336.0,67335.0,0.65602781]
[1721572752977,0.0128821,67336.0,67335.0,0.72192781]
[1721572753796,0.0128821,67336.0,67335.0,0.72192695]
[1721572754010,0.0128821,67336.0,67335.0,0.82382294]
[1721572754429,0.07973884,67336.0,67335.0,0.82382294]
[1721572755062,0.07973884,67336.0,67335.0,0.75792294]
[1721572755269,0.07973884,67336.0,67335.0,0.95304895]
[1721572755696,0.0128821,67336.0,67335.0,0.95304895]
[1721572756124,0.05745293,67336.0,67335.0,0.95304895]
[1721572756342,0.05745293,67336.0,67335.0,1.10743069]
[1721572756577,0.0128821,67336.0,67335.0,1.10743069]
[1721572756993,0.0128821,67336.0,67335.0,1.10742536]
[1721572757409,0.0098821,67336.0,67335.0,1.10742536]
[1721572757618,0.0088821,67336.0,67335.0,1.11042536]
[1721572757843,0.0088821,67336.0,67335.0,1.11242536]
[1721572758055,0.0088821,67336.0,67335.0,1.2599612]
[1721572758318,0.0088821,67336.0,67335.0,1.11642536]
[1721572758532,0.0088821,67336.0,67335.0,1.11142536]
[1721572758743,0.0088821,67336.0,67335.0,1.11742536]
[1721572758949,0.0088821,67336.0,67335.0,1.11342536]
[1721572759158,0.0088821,67336.0,67335.0,1.10742536]
[1721572759372,0.0088821,67336.0,67335.0,0.81040336]
[1721572759607,0.0088821,67336.0,67335.0,0.81640336]
[1721572760029,0.0088821,67336.0,67335.0,0.7422033]
[1721572760884,0.0088821,67336.0,67335.0,0.7362033]
[1721572761297,0.0088821,67336.0,67335.0,0.7422033]
[1721572761506,0.0088821,67336.0,67335.0,0.7382033]
[1721572761722,0.0088821,67336.0,67335.0,0.7322033]
[1721572762131,0.0088821,67336.0,67335.0,0.7372033]
[1721572762777,0.0088821,67336.0,67335.0,0.7452033]
[1721572763217,0.0088821,67336.0,67335.0,0.62186305]
[1721572763433,0.0088821,67336.0,67335.0,0.7402033]
[1721572764598,0.0088821,67336.0,67335.0,0.7462033]
[1721572764827,0.0088821,67336.0,67335.0,0.4491813]
[1721572765607,0.0088821,67336.0,67335.0,0.7462033]
[1721572766452,0.05345698,67336.0,67335.0,0.62286305]
[1721572766663,0.05345698,67336.0,67335.0,0.74620528]
[1721572767083,0.0088821,67336.0,67335.0,0.74620528]
[1721572767331,0.05345698,67336.0,67335.0,0.74620528]
[1721572769338,0.05345698,67336.0,67335.0,0.44918328]
[1721572769611,0.0780821,67336.0,67335.0,0.14629054]
[1721572769920,0.16723172,67336.0,67335.0,0.02294831]
[1721572770117,0.0780821,67336.0,67335.0,0.02294831]
[1721572770844,0.0780821,67336.0,67335.0,0.006924]
[1721572771084,0.1481821,67336.0,67335.0,0.01494831]
[1721572771256,0.1481821,67336.0,67335.0,0.00894831]
[1721572771505,0.1501821,67336.0,67335.0,0.00894831]
[1721572772676,0.1461821,67336.0,67335.0,0.00894831]
[1721572773021,0.1501821,67336.0,67335.0,0.00894831]
[1721572773234,0.1481821,67336.0,67335.0,0.00894831]
[1721572774470,0.23733908,67336.0,67335.0,0.00894831]
[1721572774682,0.23933908,67336.0,67335.0,0.00894831]
[1721572775087,0.23733908,67336.0,67335.0,0.00894831]
[1721572775535,0.23333908,67336.0,67335.0,0.00994831]
[1721572775948,0.23733569,67336.0,67335.0,0.00994831]
[1721572776490,0.23333569,67336.0,67335.0,0.00994831]
[1721572776793,0.04478339,67343.0,67342.0,0.19962431]
[1721572777014,0.01553863,67350.0,67349.0,0.05802431]
[1721572777015,0.01203863,67350.0,67349.0,0.05802431]
[1721572777232,0.06686336,67367.0,67359.0,0.00802431]
[1721572777471,0.15044669,67383.0,67359.0,0.00802431]
[1721572777472,0.06669613,67395.0,67384.0,0.20642731]
[1721572777682,9e-05,67398.0,67384.0,1.44477261]
[1721572777888,0.0692,67395.0,67384.0,1.16427261]
[1721572778089,0.00336,67385.0,67384.0,0.42066061]
[1721572778305,0.00336,67385.0,67384.0,0.9909607]
[1721572778510,0.00336,67385.0,67384.0,1.38776197]
[1721572778730,0.00336,67385.0,67384.0,1.41076197]
[1721572778934,0.00436,67385.0,67384.0,1.87825806]
[1721572779343,0.00436,67385.0,67384.0,1.62909364]
[1721572779582,0.00436,67385.0,67384.0,0.54053706]
[1721572779785,0.00436,67385.0,67384.0,1.05874606]
[1721572780216,0.00436,67385.0,67384.0,0.76194006]
[1721572780431,0.00436,67385.0,67384.0,1.35555206]
[1721572780638,0.00436,67385.0,67384.0,1.19430127]
[1721572780861,0.00536,67385.0,67384.0,1.20830127]
[1721572781129,0.00536,67385.0,67384.0,1.50510727]
[1721572781402,0.00536,67385.0,67384.0,1.20830127]
[1721572781599,0.00536,67385.0,67384.0,1.18530127]
[1721572781797,0.00536,67385.0,67384.0,1.20830195]
[1721572782067,0.00536,67385.0,67384.0,1.66180795]
[1721572782267,0.00536,67385.0,67384.0,2.00861395]
[1721572782478,0.1691676,67388.0,67387.0,0.70991331]
[1721572782697,0.1691676,67388.0,67387.0,1.92288753]
[1721572782911,0.1691676,67388.0,67387.0,2.21968053]
[1721572783154,0.00836,67404.0,67387.0,2.21968053]
[1721572783155,0.01,67444.0,67438.0,0.148284]
[1721572783400,0.01,67444.0,67438.0,0.00802431]
[1721572783600,0.1727,67442.0,67438.0,0.0651]
[1721572783805,0.01,67444.0,67427.0,0.0658]
[1721572783806,0.00691571,67439.0,67427.0,0.0658]
[1721572784053,0.00159889,67439.0,67428.0,0.002794]
[1721572784263,0.01,67444.0,67439.0,0.00802431]
[1721572784471,0.01,67444.0,67440.0,0.15438174]
[1721572785109,0.01,67444.0,67443.0,0.00802431]
[1721572785318,0.01,67444.0,67439.0,0.00802431]
[1721572785529,0.1727,67442.0,67440.0,0.15438174]
[1721572786401,0.148277,67441.0,67440.0,0.15438174]
[1721572786615,0.01,67444.0,67440.0,0.17062234]
[1721572786824,0.02,67444.0,67440.0,0.15538174]
[1721572787502,0.02,67444.0,67441.0,0.00802431]
[1721572787719,0.02,67444.0,67443.0,0.00802431]
[1721572787935,0.02,67444.0,67443.0,0.16240605]
[1721572788145,0.02,67444.0,67443.0,0.15438174]
[1721572788365,0.02,67444.0,67440.0,0.001]
[1721572788366,0.148277,67441.0,67440.0,0.001]
[1721572788586,0.148277,67441.0,67440.0,0.002]
[1721572788587,0.741387,67441.0,67440.0,0.002]
[1721572788798,0.741387,67441.0,67440.0,0.001]
[1721572789039,0.1737,67442.0,67432.0,0.00802431]
[1721572789252,0.1737,67442.0,67433.0,0.15717574]
[1721572789473,0.741465,67434.0,67433.0,0.002794]
[1721572789683,0.741465,67434.0,67422.0,0.00802431]
[1721572789684,0.296586,67434.0,67422.0,0.00802431]
[1721572789890,0.001,67442.0,67422.0,0.15438174]
[1721572789891,0.148317,67423.0,67422.0,0.15438174]
[1721572790104,0.444951,67423.0,67422.0,0.15438174]
[1721572790376,0.1727,67423.0,67410.0,0.01081831]
[1721572790570,0.1727,67423.0,67415.0,0.00802431]
[1721572790775,0.148332,67416.0,67415.0,0.00802431]
[1721572790983,0.148334,67415.0,67414.0,0.00802431]
[1721572791195,0.148334,67415.0,67411.0,0.15438174]
[1721572791196,0.148337,67415.0,67413.0,0.00802431]
[1721572791414,0.0625,67420.0,67411.0,0.15438174]
[1721572791610,0.296661,67417.0,67412.0,0.002794]
[1721572791790,0.148339,67413.0,67412.0,0.15717574]
[1721572792003,0.148339,67413.0,67412.0,0.15438174]
[1721572792208,0.1727,67417.0,67401.0,0.00802431]
[1721572792417,0.469388,67411.0,67405.0,0.00802431]
[1721572792612,0.469388,67411.0,67402.0,0.15717574]
[1721572792613,0.1727,67411.0,67408.0,0.00802431]
[1721572792819,0.148347,67410.0,67405.0,0.00802431]
[1721572793024,0.1727,67411.0,67406.0,0.002794]
[1721572793025,0.148352,67407.0,67406.0,0.002794]
[1721572793223,0.148354,67406.0,67405.0,0.002794]
[1721572793458,0.148354,67406.0,67404.0,0.002794]
[1721572793889,0.148356,67405.0,67404.0,0.002794]
[1721572794127,0.445077,67404.0,67403.0,0.002794]
[1721572794336,0.1727,67411.0,67403.0,0.002794]
[1721572794337,0.1727,67411.0,67405.0,0.00802431]
[1721572794547,0.1727,67417.0,67408.0,0.00802431]
[1721572794765,0.296607,67430.0,67415.0,0.00802431]
[1721572794766,0.1727,67423.0,67415.0,0.00802431]
[1721572794973,0.296607,67430.0,67417.0,0.00802431]
[1721572794974,0.296623,67426.0,67417.0,0.00802431]
[1721572795179,0.296623,67426.0,67416.0,0.002794]
[1721572795180,0.148312,67426.0,67420.0,0.00802431]
[1721572795391,0.296626,67425.0,67415.0,0.00802431]
[1721572795611,0.1727,67423.0,67416.0,0.002794]
[1721572795813,0.148329,67418.0,67416.0,0.002794]
[1721572796020,0.296649,67420.0,67413.0,0.00802431]
[1721572796250,0.1727,67423.0,67414.0,0.002794]
[1721572796458,0.0625,67428.0,67405.0,0.002794]
[1721572796459,0.1727,67416.0,67405.0,0.002794]
[1721572796663,0.148332,67416.0,67404.0,0.00802431]
[1721572796928,0.0625,67428.0,67405.0,0.002794]
[1721572796929,0.1727,67410.0,67405.0,0.002794]
[1721572797135,0.1727,67410.0,67404.0,0.002794]
[1721572797136,0.148356,67405.0,67404.0,0.002794]
[1721572797360,0.148356,67405.0,67397.0,0.002794]
[1721572797361,0.1727,67405.0,67397.0,0.002794]
[1721572797577,0.2335,67405.0,67393.0,0.01081831]
[1721572797792,0.1727,67398.0,67393.0,0.002794]
[1721572798011,0.1727,67398.0,67384.0,0.00802431]
[1721572798012,0.1727,67398.0,67387.0,0.002794]
[1721572798220,0.082,67399.0,67385.0,0.01081831]
[1721572798221,0.148398,67386.0,67385.0,0.01081831]
[1721572798433,0.1727,67389.0,67386.0,0.00802431]
[1721572798434,4.512e-05,67387.0,67386.0,0.00802431]
[1721572798652,0.1727,67389.0,67386.0,0.00802431]
[1721572798876,0.1727,67389.0,67388.0,0.00802431]
[1721572799090,0.1727,67389.0,67387.0,0.00802431]
[1721572799333,0.1727,67389.0,67376.0,0.01932625]
[1721572799334,0.148409,67381.0,67380.0,0.002794]
[1721572799539,0.148409,67381.0,67357.0,0.0649]
[1721572799540,0.1727,67378.0,67372.0,0.46304871]
[1721572799735,0.1727,67384.0,67376.0,0.00802431]
[1721572799946,0.1428,67388.0,67380.0,0.00802431]
[1721572799947,0.082,67388.0,67380.0,0.00802431]
[1721572800161,0.082,67388.0,67385.0,0.00802431]
[1721572800374,0.001,67389.0,67388.0,0.15641831]
[1721572800601,0.002,67389.0,67388.0,1.02762672]
[1721572800806,0.002,67389.0,67388.0,0.72094478]
[1721572801010,0.002,67389.0,67388.0,1.01773278]
[1721572801418,0.002,67389.0,67388.0,0.27576278]
[1721572801621,0.002,67389.0,67388.0,0.60758805]
[1721572801819,0.002,67389.0,67388.0,0.90437605]
[1721572802033,0.148359,67404.0,67396.0,0.00802431]
[1721572802184,0.1727,67405.0,67397.0,0.15438174]
[1721572802386,0.082,67427.0,67421.0,0.00802431]
[1721572802542,0.082,67427.0,67425.0,0.00802431]
[1721572802745,0.1727,67431.0,67425.0,0.00802431]
[1721572803036,0.1727,67431.0,67430.0,0.00802431]
[1721572803240,0.0608,67437.0,67433.0,0.00802431]
[1721572803241,0.2335,67437.0,67433.0,0.00802431]
[1721572803443,0.2335,67437.0,67429.0,0.00802431]
[1721572803649,0.2335,67437.0,67429.0,0.16240605]
[1721572803826,0.2335,67437.0,67430.0,0.1231779]
[1721572804045,0.148289,67436.0,67431.0,0.1231779]
[1721572804249,0.148289,67436.0,67429.0,0.16240605]
[1721572804442,0.148289,67436.0,67430.0,0.12317782]
[1721572804652,0.2227,67437.0,67433.0,0.001]
[1721572804873,0.2227,67437.0,67434.0,0.002794]
[1721572805089,0.2227,67437.0,67433.0,0.001]
[1721572805090,0.2227,67437.0,67435.0,0.12317709]
[1721572805290,0.2227,67437.0,67436.0,0.12317709]
[1721572806637,0.2157,67437.0,67436.0,0.12317709]
[1721572807141,0.2267,67437.0,67436.0,0.12417709]
[1721572807690,0.2337,67437.0,67436.0,0.12517709]
[1721572807901,0.23454,67437.0,67436.0,0.12517709]
[1721572808113,0.382826,67437.0,67436.0,0.12517538]
[1721572808311,0.23454,67437.0,67436.0,0.12517538]
[1721572808505,0.23454,67437.0,67436.0,0.13261538]
[1721572808707,0.679399,67437.0,67436.0,0.13261538]
[1721572808880,0.382826,67437.0,67436.0,0.13261538]
[1721572809361,0.23454,67437.0,67436.0,0.13261538]
[1721572809964,0.382826,67437.0,67436.0,0.13261538]
[1721572810308,0.679399,67437.0,67436.0,0.13261538]
[1721572810526,0.975972,67437.0,67436.0,0.13261538]
[1721572810724,0.975972,67437.0,67436.0,0.47977497]
[1721572810725,0.01884,67437.0,67436.0,0.47977497]
[1721572810950,0.002,67449.0,67448.0,0.00802431]
[1721572811166,0.002,67449.0,67448.0,0.36699644]
[1721572811365,0.002,67449.0,67448.0,0.46415427]
[1721572811602,0.002,67449.0,67448.0,0.8070937]
[1721572811901,0.002,67449.0,67448.0,1.25799944]
[1721572812268,0.002,67449.0,67448.0,0.96147544]
[1721572812466,0.01,67449.0,67448.0,1.30899944]
[1721572812691,0.01,67449.0,67448.0,1.41529944]
[1721572812852,0.002,67469.0,67452.0,0.74929131]
[1721572813047,0.148221,67467.0,67452.0,0.61852701]
[1721572813303,0.002,67469.0,67452.0,0.61852701]
[1721572813522,0.2157,67457.0,67452.0,0.30786796]
[1721572813686,0.09036,67456.0,67452.0,0.12314718]
[1721572814102,0.238605,67456.0,67452.0,0.12314718]
[1721572814300,0.09036,67456.0,67452.0,0.27852609]
[1721572814503,0.148247,67455.0,67452.0,0.12414435]
[1721572814762,0.09036,67456.0,67452.0,0.12414435]
[1721572814966,0.09036,67456.0,67452.0,0.12314435]
[1721572815171,0.156611,67453.0,67452.0,0.12314435]
[1721572815345,0.453113,67453.0,67452.0,0.12314435]
[1721572815788,0.749615,67453.0,67452.0,0.12314435]
[1721572816196,0.00836,67453.0,67452.0,0.12314435]
[1721572816399,0.156611,67453.0,67452.0,0.12314435]
[1721572816709,0.00836,67453.0,67452.0,0.12314435]
[1721572816916,0.00836,67453.0,67452.0,0.13626122]
[1721572817120,0.00836,67453.0,67452.0,0.12314435]
[1721572817256,0.00836,67453.0,67452.0,0.12314472]
[1721572817463,0.156611,67453.0,67452.0,0.12314472]
[1721572817670,0.00836,67453.0,67447.0,0.00802431]
[1721572817878,0.00836,67453.0,67448.0,0.12594154]
[1721572818109,0.00836,67453.0,67447.0,0.21351465]
[1721572818110,0.00836,67453.0,67449.0,0.12314754]
[1721572818309,0.00836,67453.0,67450.0,0.13117185]
[1721572818460,0.00836,67453.0,67451.0,0.27752928]
[1721572818663,0.00836,67453.0,67452.0,0.12314754]
[1721572818876,0.00836,67453.0,67452.0,0.13117185]
[1721572819078,0.00836,67453.0,67452.0,0.13097185]
[1721572819280,0.00836,67453.0,67452.0,0.12294754]
[1721572819506,0.00836,67453.0,67452.0,0.27732928]
[1721572819727,0.00836,67453.0,67452.0,0.28535359]
[1721572820350,0.00836,67453.0,67452.0,0.27732928]
[1721572820549,0.00836,67453.0,67452.0,0.16240605]
[1721572820775,0.00836,67453.0,67452.0,0.15438174]
[1721572821740,0.00836,67453.0,67441.0,0.002794]
[1721572821741,0.148267,67446.0,67444.0,0.05110378]
[1721572821969,0.148268,67446.0,67444.0,0.002794]
[1721572822148,0.2157,67451.0,67443.0,0.002794]
[1721572822356,0.296542,67444.0,67442.0,0.002794]
[1721572822515,0.0828,67447.0,67437.0,0.05110378]
[1721572822726,0.14828,67440.0,67437.0,0.05110378]
[1721572822925,0.148282,67439.0,67438.0,0.002794]
[1721572823126,0.444846,67439.0,67438.0,0.002794]
[1721572823372,0.444859,67437.0,67436.0,0.00744]
[1721572823978,0.78340769,67437.0,67436.0,0.00744]
[1721572824385,1.22478069,67437.0,67436.0,0.00744]
[1721572824583,1.37916243,67437.0,67436.0,0.00744]
[1721572824756,1.37916243,67437.0,67417.0,0.002794]
[1721572824757,0.148323,67420.0,67419.0,0.05113789]
[1721572824978,0.148324,67420.0,67417.0,0.46304871]
[1721572825181,0.2157,67422.0,67414.0,0.05113789]
[1721572825344,0.00670843,67419.0,67414.0,0.05113789]
[1721572825539,0.2157,67422.0,67413.0,0.05113789]
[1721572825540,0.148322,67421.0,67413.0,0.05113789]
[1721572825795,0.2157,67422.0,67413.0,0.05113789]
[1721572825965,0.15513923,67420.0,67414.0,0.23874404]
[1721572826168,0.2157,67422.0,67414.0,0.05113789]
[1721572826388,0.2157,67422.0,67415.0,0.23594592]
[1721572826584,0.2157,67422.0,67416.0,0.002794]
[1721572826783,0.2157,67422.0,67414.0,0.05118105]
[1721572826784,0.296648,67420.0,67414.0,0.05118105]
[1721572827013,0.2157,67422.0,67413.0,0.002]
[1721572827014,0.148337,67414.0,67413.0,0.002]
[1721572827221,0.296659,67418.0,67413.0,0.12321321]
[1721572827414,0.296659,67418.0,67414.0,0.12321321]
[1721572827415,0.148334,67415.0,67414.0,0.12321321]
[1721572827670,0.14833,67417.0,67414.0,0.12321321]
[1721572827796,0.148329,67418.0,67415.0,0.12321321]
[1721572827996,0.296649,67420.0,67412.0,0.05118105]
[1721572827997,0.14833,67417.0,67416.0,0.12321321]
[1721572828422,0.2157,67422.0,67416.0,0.14065264]
[1721572828786,0.0828,67425.0,67417.0,0.12321321]
[1721572828996,0.0828,67425.0,67418.0,0.12600721]
[1721572829110,0.0828,67425.0,67419.0,0.12321321]
[1721572829312,0.0828,67425.0,67420.0,0.12321321]
[1721572829511,0.231113,67425.0,67421.0,0.12321321]
[1721572829717,0.0828,67425.0,67416.0,0.00802431]
[1721572829927,0.0828,67425.0,67420.0,0.05118095]
[1721572830131,0.0848,67425.0,67421.0,0.12320644]
[1721572830332,0.0848,67425.0,67417.0,0.001]
[1721572830333,0.148317,67423.0,67422.0,0.12320644]
[1721572830558,0.0848,67425.0,67422.0,0.12320644]
[1721572830783,0.0868,67425.0,67423.0,0.12320644]
[1721572830977,0.29661,67429.0,67421.0,0.001]
[1721572831221,0.148317,67423.0,67422.0,0.12599646]
[1721572831427,0.148317,67423.0,67422.0,0.12320246]
[1721572831751,0.01340943,67423.0,67422.0,0.12320246]
[1721572832447,0.01340943,67423.0,67422.0,0.12420246]
[1721572832843,0.01340943,67423.0,67422.0,0.12320246]
[1721572833052,0.01540943,67423.0,67422.0,0.051]
[1721572833281,0.01540943,67423.0,67422.0,0.17420026]
[1721572833490,0.01219573,67423.0,67422.0,0.17420026]
[1721572833691,0.002,67423.0,67422.0,0.17420026]
[1721572833890,0.002,67423.0,67422.0,0.22420026]
[1721572834315,0.002,67423.0,67422.0,0.17420026]
[1721572834930,0.002,67423.0,67422.0,0.12420026]
[1721572834931,0.150317,67423.0,67422.0,0.12420026]
[1721572835106,0.150317,67423.0,67422.0,0.001]
[1721572835432,0.150317,67423.0,67415.0,0.05]
[1721572835433,0.14832,67422.0,67415.0,0.05]
[1721572835616,0.148322,67421.0,67417.0,0.05]
[1721572835880,0.01338859,67423.0,67417.0,0.05]
[1721572836295,0.16170659,67423.0,67417.0,0.05]
[1721572836507,0.01338859,67423.0,67417.0,0.05]
[1721572836711,0.148322,67421.0,67417.0,0.05]
[1721572836886,0.296641,67422.0,67415.0,0.05]
[1721572837038,0.296641,67422.0,67409.0,0.052794]
[1721572837039,0.148324,67420.0,67417.0,0.05]
[1721572837245,0.01338859,67423.0,67417.0,0.05]
[1721572837246,0.148322,67421.0,67417.0,0.05]
[1721572837450,0.01338859,67423.0,67412.0,0.05]
[1721572837451,0.148324,67420.0,67412.0,0.05]
[1721572837722,0.148324,67420.0,67413.0,0.05]
[1721572837723,0.1446,67420.0,67413.0,0.05]
[1721572837929,0.296652,67419.0,67413.0,0.05]
[1721572838130,0.1446,67420.0,67413.0,0.05]
[1721572838920,0.14833,67417.0,67413.0,0.05]
[1721572839135,0.296657,67418.0,67413.0,0.05]
[1721572839336,0.0031858,67416.0,67413.0,0.05]
[1721572839646,0.00319021,67417.0,67413.0,0.05]
[1721572839853,0.00318138,67415.0,67412.0,0.05]
[1721572840053,0.14833,67417.0,67413.0,0.05]
[1721572840501,0.14833,67417.0,67405.0,0.002794]
[1721572840502,0.3556254,67416.0,67408.0,0.05]
[1721572840705,0.14834,67413.0,67408.0,0.05]
[1721572840911,0.148338,67414.0,67408.0,0.05]
[1721572841149,0.01013941,67412.0,67408.0,0.05]
[1721572841352,0.01013666,67413.0,67408.0,0.05]
[1721572841561,0.01014217,67411.0,67408.0,0.05]
[1721572841763,0.01013941,67412.0,67408.0,0.05]
[1721572841972,0.01014492,67410.0,67408.0,0.05]
[1721572842186,0.148337,67414.0,67408.0,0.05]
[1721572842431,0.01014768,67409.0,67408.0,0.05]
[1721572842637,0.00316959,67413.0,67408.0,0.05]
[1721572844126,0.15150959,67413.0,67408.0,0.05]
[1721572844459,0.15550959,67413.0,67408.0,0.05]
[1721572844884,0.01013941,67412.0,67408.0,0.05]
[1721572846160,0.01013941,67412.0,67398.0,0.002794]
[1721572846161,0.00315779,67411.0,67406.0,0.05]
[1721572846367,0.00315779,67411.0,67408.0,0.007]
[1721572846368,0.321048,67409.0,67408.0,0.007]
[1721572846574,0.321048,67409.0,67408.0,0.013]
[1721572846775,0.38730038,67409.0,67408.0,0.013]
[1721572846985,0.68399638,67409.0,67408.0,0.013]
[1721572847190,0.68399638,67409.0,67402.0,0.05]
[1721572847191,0.53564838,67409.0,67402.0,0.05]
[1721572847397,0.148352,67407.0,67406.0,0.016]
[1721572847810,0.15151578,67407.0,67406.0,0.016]
[1721572848021,0.15151578,67407.0,67406.0,0.008]
[1721572848237,0.00316378,67407.0,67406.0,0.008]
[1721572848730,0.14835,67408.0,67402.0,0.05]
[1721572848973,0.00315798,67407.0,67402.0,0.05]
[1721572849276,0.00315798,67407.0,67397.0,0.05017861]
[1721572849277,0.00315798,67407.0,67401.0,0.05]
[1721572849526,2.947e-05,67402.0,67397.0,0.00017861]
[1721572849824,2.947e-05,67402.0,67398.0,0.002794]
[1721572850029,0.148372,67398.0,67397.0,0.00017861]
[1721572850280,0.445116,67398.0,67397.0,0.00017861]
[1721572850530,0.44822236,67398.0,67397.0,0.00017861]
[1721572850765,0.74496636,67398.0,67397.0,0.00017861]
[1721572850998,0.8993481,67398.0,67397.0,0.00917861]
[1721572851412,0.8993481,67398.0,67397.0,0.00017861]
[1721572851618,0.8993481,67398.0,67397.0,0.01317861]
[1721572851837,0.6026041,67398.0,67397.0,0.02717861]
[1721572852043,0.3058601,67398.0,67397.0,0.02717861]
[1721572852578,0.8993481,67398.0,67397.0,0.02717861]